bitfinex/quotes_BTCUSD_20250417
["timestamp","ask_amount","ask_price","bid_price","bid_amount"]
[1744896741371,0.02182274,84526.0,84525.0,0.23661638]
[1744896741584,0.1165698,84526.0,84525.0,0.51545127]
[1744896741804,0.09474706,84526.0,84525.0,0.49854429]
[1744896742007,0.09474706,84526.0,84525.0,0.14248]
[1744896743511,0.09574706,84526.0,84525.0,0.14248]
[1744896743938,0.09674706,84526.0,84525.0,0.14248]
[1744896746055,0.002,84526.0,84525.0,0.14248]
[1744896746258,0.052,84526.0,84525.0,0.56128]
[1744896747119,0.052,84526.0,84525.0,0.43649412]
[1744896747526,0.28861358,84526.0,84525.0,0.43649412]
[1744896747683,0.052,84526.0,84525.0,0.43649412]
[1744896747882,0.052,84526.0,84525.0,0.6731105]
[1744896748108,0.052,84526.0,84525.0,0.43649412]
[1744896748109,0.09674706,84526.0,84525.0,0.43649412]
[1744896748463,0.33336064,84526.0,84525.0,0.43649412]
[1744896748674,0.09674706,84526.0,84525.0,0.43649412]
[1744896748876,0.002,84526.0,84525.0,0.6731105]
[1744896749053,0.002,84526.0,84525.0,0.80709926]
[1744896749227,0.002,84526.0,84525.0,1.14709926]
[1744896749777,0.002,84526.0,84525.0,1.13255841]
[1744896751118,0.002,84526.0,84525.0,1.14709926]
[1744896752151,0.24836608,84553.0,84525.0,1.14709926]
[1744896752152,0.0485,84574.0,84548.0,0.01454085]
[1744896752309,0.09474706,84565.0,84564.0,0.23650726]
[1744896753057,0.24831621,84570.0,84567.0,0.23649725]
[1744896753227,0.2483184,84569.0,84565.0,0.23650266]
[1744896753423,0.09474706,84566.0,84565.0,0.23650266]
[1744896753953,0.09474706,84566.0,84564.0,0.23650726]
[1744896754529,0.09474706,84565.0,84564.0,0.23650726]
[1744896755081,0.0951981,84569.0,84568.0,0.23649607]
[1744896755499,0.0118248,84568.0,84563.0,0.0118255]
[1744896755709,0.09474706,84564.0,84563.0,0.23650744]
[1744896756737,0.09474706,84564.0,84563.0,0.3704962]
[1744896757146,0.00045104,84569.0,84563.0,0.3704962]
[1744896757147,0.0951981,84569.0,84568.0,0.23649607]
[1744896757974,0.0951981,84569.0,84568.0,0.53051019]
[1744896758342,0.00045104,84569.0,84568.0,0.29401412]
[1744896758542,0.00045104,84569.0,84568.0,1.00449895]
[1744896758782,0.0018442,84589.0,84587.0,0.01454085]
[1744896758973,0.00197947,84589.0,84588.0,0.80684303]
[1744896759199,0.00197947,84589.0,84588.0,1.14684303]
[1744896759547,0.0008442,84611.0,84602.0,0.59094188]
[1744896759548,0.0008434,84603.0,84602.0,0.59094188]
[1744896759755,0.0008434,84603.0,84602.0,0.11944791]
[1744896759935,0.0008434,84603.0,84600.0,0.01182033]
[1744896760134,0.0008434,84603.0,84590.0,0.34]
[1744896760135,0.01182061,84598.0,84590.0,0.34]
[1744896760276,0.01182061,84598.0,84593.0,0.0118213]
[1744896760482,0.01182061,84598.0,84597.0,0.236415]
[1744896760483,0.09474706,84598.0,84597.0,0.236415]
[1744896760928,0.01182116,84594.0,84587.0,1.10648]
[1744896761129,0.23543456,84590.0,84587.0,1.10648]
[1744896761329,0.33118721,84588.0,84587.0,1.10648]
[1744896761503,0.23645413,84583.0,84582.0,0.1424]
[1744896761706,0.23648488,84572.0,84571.0,0.29414939]
[1744896761906,0.23648488,84572.0,84571.0,0.43654939]
[1744896762273,0.33123194,84572.0,84571.0,0.43654939]
[1744896762465,0.33123194,84572.0,84571.0,0.00013527]
[1744896762466,0.51027985,84572.0,84571.0,0.00013527]
[1744896762690,0.55767985,84572.0,84571.0,0.00013527]
[1744896762891,0.24842337,84534.0,84526.0,1.11811067]
[1744896763096,0.24842337,84534.0,84533.0,0.1424]
[1744896763311,0.34317043,84534.0,84533.0,0.1424]
[1744896763681,0.34317043,84534.0,84520.0,0.1424]
[1744896763682,0.33134385,84532.0,84520.0,0.1424]
[1744896763882,0.33134385,84532.0,84523.0,0.01183109]
[1744896764043,0.09474706,84532.0,84527.0,0.24843983]
[1744896764240,0.09474706,84532.0,84520.0,0.1424]
[1744896764538,0.33134385,84532.0,84531.0,0.00245104]
[1744896765385,0.09474706,84532.0,84531.0,0.00245104]
[1744896766913,0.33134385,84532.0,84531.0,0.00245104]
[1744896767136,0.09474706,84532.0,84531.0,0.00245104]
[1744896767348,0.09474706,84535.0,84532.0,0.01182983]
[1744896767503,0.09474706,84535.0,84534.0,0.23659119]
[1744896767704,0.09474706,84533.0,84532.0,0.24842662]
[1744896767990,0.01182886,84539.0,84532.0,0.23659679]
[1744896768181,0.09474706,84537.0,84536.0,0.23658454]
[1744896768342,0.09474706,84535.0,84534.0,0.23659013]
[1744896768778,0.24841022,84538.0,84531.0,0.00245104]
[1744896768779,0.09474706,84538.0,84537.0,0.01182913]
[1744896768919,0.09474706,84533.0,84532.0,0.01182983]
[1744896769424,0.09474706,84535.0,84534.0,0.23659119]
[1744896769833,0.24842074,84534.0,84531.0,0.00245104]
[1744896770038,0.09474706,84535.0,84531.0,0.01428101]
[1744896770419,0.09474706,84535.0,84533.0,0.23659195]
[1744896770599,0.09474706,84534.0,84533.0,0.23659195]
[1744896771397,0.09474706,84533.0,84532.0,0.23659372]
[1744896771837,0.09474706,84535.0,84534.0,0.23659119]
[1744896772810,0.09474706,84535.0,84532.0,0.23659372]
[1744896773008,0.09474706,84535.0,84527.0,0.29401412]
[1744896773009,0.05,84530.0,84527.0,0.29401412]
[1744896773357,0.05,84530.0,84528.0,0.23660721]
[1744896773982,0.23656545,84544.0,84528.0,0.23660721]
[1744896773983,0.09474706,84539.0,84534.0,0.23659119]
[1744896774206,0.0596751,84633.0,84534.0,0.23659119]
[1744896774207,0.09474706,84552.0,84534.0,1.15099407]
[1744896774413,0.09474706,84551.0,84534.0,1.15099407]
[1744896774618,0.23654716,84550.0,84534.0,1.15099407]
[1744896774821,0.01182816,84544.0,84534.0,0.38299119]
[1744896775050,0.24841253,84537.0,84534.0,0.1464]
[1744896775258,0.01182899,84538.0,84534.0,0.1464]
[1744896775429,0.01182913,84537.0,84534.0,0.1464]
[1744896775639,0.01182913,84537.0,84533.0,0.23659236]
[1744896775846,0.01182913,84537.0,84534.0,0.002]
[1744896776052,0.23758839,84535.0,84534.0,0.002]
[1744896776257,0.001,84535.0,84534.0,0.002]
[1744896776439,0.001,84535.0,84534.0,0.007]
[1744896776791,0.01282941,84535.0,84531.0,0.1464]
[1744896776984,0.09474706,84534.0,84531.0,0.15822997]
[1744896777633,0.09474706,84534.0,84532.0,0.23659503]
[1744896778048,0.33134159,84534.0,84531.0,0.1464]
[1744896778239,0.23659399,84533.0,84531.0,0.1464]
[1744896778362,0.23659399,84533.0,84527.0,6.943e-05]
[1744896778363,0.23660518,84529.0,84527.0,6.943e-05]
[1744896778975,0.33135224,84529.0,84527.0,6.943e-05]
[1744896779614,0.47080015,84529.0,84527.0,6.943e-05]
[1744896781293,0.24849965,84508.0,84500.0,0.01183431]
[1744896781566,0.01183417,84501.0,84499.0,0.57668887]
[1744896781778,0.23668639,84500.0,84499.0,9.622e-05]
[1744896781980,0.05,84500.0,84499.0,9.622e-05]
[1744896782880,0.01183375,84504.0,84499.0,9.622e-05]
[1744896782881,0.05,84505.0,84504.0,0.23667518]
[1744896783086,0.09474706,84505.0,84504.0,0.23667518]
[1744896783557,0.09474706,84507.0,84506.0,0.01183347]
[1744896783757,0.24846882,84518.0,84511.0,0.01183277]
[1744896783933,0.09474706,84519.0,84518.0,0.24846586]
[1744896784314,0.09474706,84525.0,84520.0,0.23663038]
[1744896784517,0.001,84529.0,84520.0,0.23663038]
[1744896784518,0.09574706,84529.0,84528.0,0.23660798]
[1744896784909,0.09574706,84529.0,84528.0,0.1464]
[1744896785113,0.09574706,84529.0,84528.0,0.38300798]
[1744896785321,0.09574706,84529.0,84528.0,0.1464]
[1744896785838,0.01183165,84519.0,84516.0,0.23664045]
[1744896786048,0.23664158,84516.0,84515.0,0.1464]
[1744896786486,0.23669234,84498.0,84488.0,0.23671938]
[1744896786855,0.33145586,84492.0,84486.0,0.0008428]
[1744896787057,0.33145586,84492.0,84491.0,0.00051792]
[1744896787262,0.33145586,84492.0,84464.0,0.1464]
[1744896787263,0.28129497,84492.0,84467.0,4.772e-05]
[1744896787454,0.23677605,84468.0,84467.0,4.772e-05]
[1744896787668,0.23677605,84468.0,84467.0,0.00018284]
[1744896787841,0.09474706,84472.0,84467.0,0.23696058]
[1744896788053,0.24860833,84471.0,84467.0,0.00018284]
[1744896788252,0.24860993,84470.0,84467.0,0.00018284]
[1744896788456,0.24860769,84471.0,84467.0,0.00018284]
[1744896788628,0.01183838,84471.0,84467.0,0.01202178]
[1744896788835,0.01183838,84471.0,84467.0,0.24879828]
[1744896789029,0.34335209,84472.0,84467.0,0.24879828]
[1744896789030,0.09474706,84472.0,84469.0,0.24860985]
[1744896789238,0.09474706,84472.0,84469.0,0.01183866]
[1744896789448,0.09474706,84475.0,84474.0,0.23675923]
[1744896789644,0.01183684,84482.0,84476.0,0.01183768]
[1744896789645,0.09474706,84479.0,84476.0,0.01183768]
[1744896789850,0.24857477,84482.0,84477.0,0.24858669]
[1744896790012,0.24857477,84482.0,84469.0,0.24861191]
[1744896790013,0.05,84472.0,84469.0,0.24861191]
[1744896790219,0.1065853,84472.0,84465.0,0.01183922]
[1744896790429,0.09474706,84472.0,84468.0,0.24861485]
[1744896790689,0.09474706,84472.0,84470.0,0.23676876]
[1744896791247,0.09574706,84472.0,84470.0,0.23676876]
[1744896791548,0.09574706,84472.0,84470.0,0.23676875]
[1744896791755,0.001,84472.0,84470.0,0.23776875]
[1744896791962,0.001,84472.0,84471.0,0.13635614]
[1744896792113,0.001,84472.0,84471.0,0.28279614]
[1744896792317,0.001,84472.0,84471.0,0.28042876]
[1744896792736,0.05,84489.0,84486.0,0.01183628]
[1744896792901,0.09474706,84489.0,84484.0,0.01183656]
[1744896793292,0.09474706,84488.0,84487.0,0.24855894]
[1744896793436,0.09474706,84485.0,84484.0,0.24856497]
[1744896793642,0.09474706,84488.0,84486.0,0.236723]
[1744896794077,0.24853619,84495.0,84488.0,0.23672]
[1744896794078,0.09474706,84489.0,84488.0,0.23672]
[1744896794666,0.09474706,84487.0,84486.0,0.236723]
[1744896795084,0.09474706,84487.0,84483.0,0.23673275]
[1744896795321,0.01183754,84477.0,84471.0,0.26588791]
[1744896795527,0.01183796,84474.0,84471.0,0.23676739]
[1744896795742,0.09474706,84471.0,84470.0,0.001]
[1744896797154,0.09474706,84471.0,84456.0,0.0004219]
[1744896797155,0.09474706,84464.0,84463.0,0.01960394]
[1744896797357,0.46098224,84464.0,84463.0,0.01964913]
[1744896798119,0.48278787,84464.0,84463.0,0.01964913]
[1744896798320,0.48278787,84464.0,84421.0,0.14648]
[1744896798321,0.28681811,84453.0,84421.0,0.14648]
[1744896798504,0.09474706,84444.0,84421.0,0.14648]
[1744896798705,0.09474706,84444.0,84412.0,0.01184665]
[1744896798706,0.81103832,84444.0,84412.0,0.01184665]
[1744896798990,0.83284395,84444.0,84418.0,0.01184581]
[1744896799611,0.83284395,84444.0,84419.0,0.23691199]
[1744896799835,0.83284395,84444.0,84443.0,1e-08]
[1744896800541,0.39909689,84444.0,84443.0,1e-08]
[1744896800754,0.47203832,84444.0,84443.0,1e-08]
[1744896800979,0.47103832,84444.0,84443.0,1e-08]
[1744896801209,0.47203832,84444.0,84443.0,1e-08]
[1744896801672,0.05,84436.0,84435.0,0.23686588]
[1744896801903,0.09474706,84436.0,84435.0,0.23686588]
[1744896802359,0.09474706,84436.0,84434.0,0.05693133]
[1744896802360,0.09474706,84432.0,84431.0,0.23687933]
[1744896802588,0.09474706,84432.0,84429.0,0.23688485]
[1744896802776,0.09474706,84434.0,84433.0,0.2368742]
[1744896803557,0.09474706,84434.0,84430.0,0.23688124]
[1744896803558,0.09474706,84431.0,84430.0,0.23688124]
[1744896803735,0.001,84432.0,84410.0,0.83807117]
[1744896803736,0.09474706,84430.0,84426.0,0.23834144]
[1744896803943,0.09474706,84430.0,84428.0,0.23688637]
[1744896804630,0.09474706,84430.0,84426.0,0.01329484]
[1744896804631,0.09474706,84430.0,84426.0,0.00145015]
[1744896804803,0.01184399,84431.0,84426.0,0.00145015]
[1744896804804,0.3316381,84427.0,84426.0,0.00145015]
[1744896805803,0.45108601,84427.0,84426.0,0.00145015]
[1744896806026,0.48280689,84427.0,84426.0,0.00145015]
[1744896806225,0.33168019,84412.0,84411.0,0.0014217]
[1744896806432,0.4511281,84412.0,84411.0,0.0015503]
[1744896807636,0.4531281,84412.0,84411.0,0.0015503]
[1744896808651,0.47484142,84412.0,84411.0,0.0015503]
[1744896808872,0.47584142,84412.0,84411.0,0.0015503]
[1744896809079,0.47384142,84412.0,84411.0,0.0015503]
[1744896809663,0.47284142,84412.0,84411.0,0.0015503]
[1744896810149,0.4521281,84412.0,84411.0,0.0015503]
[1744896811516,0.4511281,84412.0,84411.0,0.0015503]
[1744896811767,0.47383408,84412.0,84411.0,0.0015503]
[1744896811972,0.47383408,84412.0,84409.0,0.0004216]
[1744896811973,0.71938581,84410.0,84409.0,1e-08]
[1744896812176,0.9076397,84410.0,84409.0,1e-08]
[1744896812340,1.0876397,84410.0,84409.0,1e-08]
[1744896812541,1.2343197,84410.0,84409.0,1e-08]
[1744896813227,1.2353197,84410.0,84409.0,1e-08]
[1744896813552,1.2363197,84410.0,84409.0,1e-08]
[1744896813760,0.2369612,84402.0,84394.0,0.0004218]
[1744896813979,0.67066465,84395.0,84394.0,0.00047537]
[1744896814180,0.84011256,84395.0,84394.0,0.00047537]
[1744896814387,0.86181854,84395.0,84394.0,0.00047537]
[1744896814591,0.52181854,84395.0,84394.0,0.00047537]
[1744896814835,0.50011256,84395.0,84394.0,0.00047537]
[1744896815224,0.45011256,84395.0,84394.0,0.00047537]
[1744896815818,0.47583267,84395.0,84394.0,0.00047537]
[1744896816060,0.48583267,84395.0,84394.0,0.00047537]
[1744896816263,0.33068431,84388.0,84387.0,0.0127409]
[1744896816515,0.33068431,84388.0,84387.0,0.0128374]
[1744896816516,0.46013222,84388.0,84387.0,0.0128374]
[1744896816711,0.33069554,84384.0,84383.0,0.0004217]
[1744896816908,0.46014345,84384.0,84383.0,0.0004217]
[1744896817266,0.48186356,84384.0,84383.0,0.0004217]
[1744896818083,0.1154039,84384.0,84383.0,0.0004217]
[1744896818290,0.1184039,84384.0,84383.0,0.0004217]
[1744896818896,0.09668379,84384.0,84383.0,0.0004217]
[1744896819136,0.09368379,84384.0,84383.0,0.0004217]
[1744896819556,0.09468379,84384.0,84383.0,0.0004217]
[1744896820859,0.09768379,84384.0,84383.0,0.0004217]
[1744896821040,0.33169554,84384.0,84383.0,0.0004217]
[1744896821249,0.33169554,84384.0,84383.0,0.23743626]
[1744896821250,0.001,84384.0,84383.0,0.23743626]
[1744896821433,0.09468379,84384.0,84383.0,0.0004217]
[1744896821644,0.33169554,84384.0,84383.0,0.0004217]
[1744896821845,0.33269554,84384.0,84383.0,0.0004217]
[1744896822279,0.09568379,84384.0,84383.0,0.0004217]
[1744896822681,0.09568379,84384.0,84383.0,0.23743626]
[1744896823056,0.09568379,84384.0,84383.0,0.0004217]
[1744896823296,0.33269554,84384.0,84383.0,0.0004217]
[1744896823759,0.3544726,84384.0,84383.0,0.0004217]
[1744896824365,0.47392051,84384.0,84383.0,0.0004217]
[1744896825206,0.11746085,84384.0,84383.0,0.23743626]
[1744896825568,0.11746085,84384.0,84383.0,0.0004217]
[1744896826646,0.09568379,84384.0,84383.0,0.23743626]
[1744896826899,0.09568379,84384.0,84383.0,0.23843626]
[1744896827094,0.09568379,84384.0,84383.0,0.0014217]
[1744896827301,0.33269554,84384.0,84383.0,0.0014217]
[1744896827494,0.09568379,84384.0,84383.0,0.0014217]
[1744896827717,0.35456271,84384.0,84383.0,0.0014217]
[1744896828692,0.36549851,84384.0,84383.0,0.0014217]
[1744896829467,0.48494642,84384.0,84383.0,0.0014217]
[1744896829668,0.47401062,84384.0,84383.0,0.0014217]
[1744896830569,0.35456271,84384.0,84383.0,0.0014217]
[1744896831230,0.35456271,84384.0,84383.0,0.0004217]
[1744896832072,0.35556271,84384.0,84383.0,0.0004217]
[1744896832265,0.48595415,84384.0,84383.0,0.0004217]
[1744896832645,0.33071239,84378.0,84377.0,0.0004218]
[1744896832841,0.4701603,84378.0,84377.0,0.0004218]
[1744896833190,0.49202747,84378.0,84377.0,0.0004218]
[1744896833697,0.502971,84378.0,84377.0,0.0004218]
[1744896834546,0.504971,84378.0,84377.0,0.0004218]
[1744896835086,0.506971,84378.0,84377.0,0.0004218]
[1744896835714,0.37142004,84378.0,84377.0,0.0004218]
[1744896835919,0.46510383,84378.0,84377.0,0.0004218]
[1744896836700,0.34565592,84378.0,84377.0,0.0004218]
[1744896837714,0.10862732,84378.0,84377.0,0.0004218]
[1744896837920,0.10862732,84378.0,84377.0,0.39001321]
[1744896837921,0.01494353,84378.0,84377.0,0.39001321]
[1744896838123,0.01494353,84378.0,84377.0,0.86400197]
[1744896838735,0.004,84378.0,84377.0,0.57845321]
[1744896838935,0.001,84384.0,84377.0,0.57845321]
[1744896838936,0.001,84384.0,84383.0,0.23701456]
[1744896839683,0.001,84384.0,84381.0,0.011851]
[1744896839684,0.001,84384.0,84381.0,0.57701981]
[1744896839895,0.001,84384.0,84383.0,0.35454085]
[1744896840073,0.001,84384.0,84383.0,0.47398876]
[1744896840878,0.001,84384.0,84383.0,0.47498876]
[1744896841082,0.09352799,84421.0,84418.0,0.01184581]
[1744896841280,0.10537352,84420.0,84419.0,0.15152]
[1744896841517,0.09352799,84420.0,84419.0,0.15152]
[1744896841719,0.09366318,84421.0,84420.0,0.23691068]
[1744896841908,0.09352799,84420.0,84419.0,0.15252]
[1744896842067,0.04997939,84421.0,84420.0,0.23691068]
[1744896842284,0.00013519,84421.0,84420.0,0.23691068]
[1744896842488,0.00013519,84421.0,84416.0,0.23691927]
[1744896842489,0.09352799,84393.0,84383.0,0.01285072]
[1744896842694,0.09352799,84388.0,84383.0,0.01285072]
[1744896842919,0.51166622,84420.0,84383.0,0.01285072]
[1744896842920,0.09352799,84391.0,84388.0,0.24885054]
[1744896843123,0.0498442,84390.0,84388.0,0.001]
[1744896843296,0.3305257,84389.0,84388.0,0.001]
[1744896843500,0.3305257,84389.0,84388.0,0.16252]
[1744896843699,0.09352799,84389.0,84388.0,0.16252]
[1744896844560,0.09352799,84389.0,84388.0,0.001]
[1744896845110,0.09352799,84389.0,84388.0,0.16252]
[1744896845499,0.09352799,84389.0,84388.0,0.16452]
[1744896845712,0.09352799,84391.0,84389.0,0.26338844]
[1744896845923,0.09352799,84390.0,84388.0,0.16252]
[1744896846123,0.09352799,84389.0,84388.0,0.16252]
[1744896846329,0.09352799,84389.0,84388.0,0.16452]
[1744896846528,0.09352799,84389.0,84388.0,0.40152052]
[1744896846737,0.09352799,84392.0,84391.0,0.23699209]
[1744896846991,0.09352799,84391.0,84390.0,0.2369937]
[1744896847534,0.09352799,84391.0,84388.0,0.001]
[1744896847535,0.23699771,84389.0,84388.0,0.001]
[1744896847735,0.23699771,84389.0,84388.0,0.16252]
[1744896847736,0.3305257,84389.0,84388.0,0.16252]
[1744896848184,0.09352799,84389.0,84388.0,0.16252]
[1744896848389,0.09352799,84389.0,84388.0,0.39952052]
[1744896848590,0.09352799,84391.0,84388.0,0.41137054]
[1744896848928,0.09366311,84395.0,84394.0,0.23698367]
[1744896849061,0.00013512,84395.0,84394.0,0.37097243]
[1744896849265,0.00013512,84395.0,84394.0,0.71097243]
[1744896849451,0.01184581,84418.0,84413.0,0.01184651]
[1744896849684,0.01284539,84421.0,84414.0,0.17336637]
[1744896849895,0.09266311,84417.0,84416.0,0.01184609]
[1744896850224,0.0498442,84419.0,84417.0,0.2369191]
[1744896850403,0.00113567,84421.0,84420.0,0.23691068]
[1744896851000,0.00113567,84421.0,84420.0,0.23927954]
[1744896851381,0.00113567,84421.0,84420.0,0.37089944]
[1744896852289,0.00113567,84421.0,84420.0,0.53241944]
[1744896852526,0.00113567,84421.0,84420.0,0.87241944]
[1744896852939,0.00113567,84421.0,84420.0,0.87441944]
[1744896853148,0.00113567,84421.0,84420.0,0.16352]
[1744896853356,0.00113567,84421.0,84420.0,0.51842966]
[1744896853560,0.00113567,84421.0,84420.0,0.52206085]
[1744896853762,0.00113567,84421.0,84420.0,0.64150876]
[1744896853934,0.00113567,84421.0,84420.0,0.63950876]
[1744896854162,0.00113567,84421.0,84420.0,0.65434747]
[1744896854314,0.00113567,84421.0,84420.0,0.64250876]
[1744896855074,0.00113567,84421.0,84420.0,0.63850876]
[1744896855479,0.00113567,84421.0,84420.0,0.64146876]
[1744896856940,0.00113567,84421.0,84420.0,0.62692791]
[1744896857139,0.00113567,84421.0,84420.0,0.50748]
[1744896858436,0.00113567,84421.0,84420.0,0.52202085]
[1744896858848,0.00113567,84421.0,84420.0,0.66344732]
[1744896859058,0.09466311,84439.0,84437.0,0.23686298]
[1744896859325,0.09266311,84438.0,84437.0,0.23686298]
[1744896859506,0.002,84439.0,84437.0,0.23686298]
[1744896859729,0.09466311,84439.0,84437.0,0.23686298]
[1744896859906,0.09466311,84439.0,84437.0,0.25140383]
[1744896859907,0.09266311,84438.0,84437.0,0.25140383]
[1744896860111,0.002,84439.0,84437.0,0.25140383]
[1744896860731,0.002,84439.0,84438.0,0.16148]
[1744896860935,0.002,84439.0,84437.0,0.23686247]
[1744896861162,0.002,84439.0,84438.0,0.16144]
[1744896861367,0.002,84439.0,84437.0,0.23686247]
[1744896861569,0.002,84439.0,84438.0,0.16144]
[1744896862499,0.002,84439.0,84389.0,0.08880505]
[1744896862500,0.0965,84432.0,84389.0,0.08880505]
[1744896862702,0.23699453,84391.0,84389.0,0.08880505]
[1744896862869,0.09266311,84390.0,84389.0,0.08894072]
[1744896863107,0.09266311,84391.0,84389.0,0.44538634]
[1744896863313,0.23696945,84400.0,84389.0,0.38167851]
[1744896863314,0.09266311,84392.0,84389.0,0.38167851]
[1744896863488,0.09266311,84391.0,84390.0,0.23699446]
[1744896863642,0.09266311,84391.0,84390.0,0.39843446]
[1744896864006,0.24882531,84397.0,84390.0,0.39843446]
[1744896864007,0.01184848,84399.0,84395.0,0.01184904]
[1744896864213,0.01184862,84398.0,84394.0,0.01184918]
[1744896864400,0.10451159,84399.0,84394.0,0.01184918]
[1744896864592,0.01184862,84398.0,84395.0,0.02198673]
[1744896864786,0.34148236,84399.0,84395.0,0.03383577]
[1744896865596,0.23697672,84397.0,84396.0,0.02198673]
[1744896865958,0.66963983,84397.0,84396.0,0.02198673]
[1744896866344,0.32965239,84392.0,84391.0,0.02198673]
[1744896866851,0.09266311,84392.0,84391.0,0.02198673]
[1744896867078,0.09266311,84392.0,84391.0,0.16148]
[1744896867760,0.0498442,84402.0,84392.0,0.01454085]
[1744896867960,0.01184553,84420.0,84419.0,0.23691349]
[1744896867961,0.08966312,84420.0,84419.0,0.23691349]
[1744896868200,0.08966312,84418.0,84417.0,0.23691855]
[1744896868401,0.10150907,84417.0,84409.0,0.24878715]
[1744896868625,0.08966312,84417.0,84414.0,0.24877253]
[1744896868827,0.08966312,84415.0,84414.0,0.24877253]
[1744896869626,0.08966312,84415.0,84414.0,0.02204616]
[1744896869978,0.08966312,84414.0,84413.0,0.25897556]
[1744896872079,0.24870967,84436.0,84425.0,0.01184483]
[1744896872226,0.08966312,84426.0,84425.0,0.01184483]
[1744896872442,0.08966312,84424.0,84423.0,0.23690226]
[1744896872652,0.08966312,84424.0,84423.0,0.25894842]
[1744896873068,0.08966312,84424.0,84423.0,0.02204616]
[1744896873428,0.08966312,84423.0,84422.0,0.23690356]
[1744896873640,0.08966312,84417.0,84413.0,0.23692819]
[1744896873813,0.08966312,84417.0,84415.0,0.23692233]
[1744896874176,0.08966312,84417.0,84416.0,0.1612]
[1744896874537,0.08966312,84417.0,84416.0,0.18326015]
[1744896874984,0.08966312,84417.0,84416.0,0.43202534]
[1744896875392,0.08966312,84419.0,84418.0,0.23691629]
[1744896875787,0.08966312,84432.0,84430.0,0.24872675]
[1744896876014,0.05,84474.0,84430.0,0.24872675]
[1744896876015,0.0484,84460.0,84438.0,0.01454085]
[1744896876215,0.08966312,84444.0,84438.0,0.29518876]
[1744896876438,0.08966312,84444.0,84438.0,0.1612]
[1744896876638,0.08966312,84443.0,84438.0,0.18326015]
[1744896877566,0.09266312,84439.0,84438.0,0.18326015]
[1744896878140,0.09266312,84439.0,84438.0,0.1612]
[1744896878342,0.09266312,84439.0,84427.0,0.23689017]
[1744896878343,0.08966312,84429.0,84427.0,0.23689017]
[1744896878554,0.08966312,84429.0,84428.0,0.1612]
[1744896878929,0.08966312,84429.0,84428.0,0.4201658]
[1744896879130,0.04684421,84429.0,84428.0,0.4201658]
[1744896879400,0.08966312,84429.0,84428.0,0.4201658]
[1744896879720,0.08966312,84429.0,84428.0,0.4211658]
[1744896880155,0.08966312,84429.0,84428.0,0.39908823]
[1744896880355,0.08966312,84432.0,84431.0,0.23687981]
[1744896880637,0.003,84439.0,84436.0,0.01184328]
[1744896880821,0.09266312,84439.0,84438.0,0.23686018]
[1744896881530,0.09266312,84439.0,84438.0,0.25894105]
[1744896882447,0.4489684,84439.0,84438.0,0.02208087]
[1744896882624,0.4981684,84439.0,84438.0,0.02208087]
[1744896882831,0.32654574,84430.0,84429.0,0.02208087]
[1744896883053,0.49399365,84430.0,84429.0,0.02208087]
[1744896883200,0.2797324,84419.0,84417.0,0.16116]
[1744896883399,0.44602452,84419.0,84417.0,0.16116]
[1744896883809,0.44602452,84419.0,84401.0,1.2692]
[1744896883810,0.49422452,84419.0,84401.0,1.2692]
[1744896884234,0.50422452,84419.0,84401.0,1.2692]
[1744896884430,0.84422452,84419.0,84401.0,1.2692]
[1744896884651,0.32662432,84402.0,84401.0,1.2682]
[1744896884901,0.44607223,84402.0,84401.0,0.16129567]
[1744896885178,0.44507223,84402.0,84401.0,0.00013567]
[1744896888676,0.20911103,84402.0,84401.0,0.00013567]
[1744896889596,0.08966312,84402.0,84401.0,0.00013567]
[1744896889801,0.47375357,84433.0,84401.0,0.00013567]
[1744896889802,0.08966312,84405.0,84404.0,0.23695559]
[1744896890007,0.08966312,84410.0,84409.0,0.23694155]
[1744896891121,0.01184637,84414.0,84413.0,0.23693033]
[1744896891122,0.08966312,84414.0,84413.0,0.23693033]
[1744896892798,0.08966312,84414.0,84413.0,0.23793033]
[1744896894030,0.32659064,84414.0,84413.0,0.001]
[1744896894235,0.44703855,84414.0,84413.0,0.001]
[1744896894847,0.54873855,84414.0,84413.0,0.001]
[1744896895847,0.54973855,84414.0,84413.0,0.001]
[1744896897464,0.54873855,84414.0,84413.0,0.001]
[1744896897846,0.54973855,84414.0,84413.0,0.001]
[1744896899396,0.54873855,84414.0,84413.0,0.001]
[1744896900652,0.54973855,84414.0,84413.0,0.001]
[1744896900863,0.46007543,84414.0,84413.0,0.001]
[1744896901059,0.53973855,84414.0,84413.0,0.001]
[1744896901476,0.09166312,84414.0,84413.0,0.001]
[1744896901671,0.09166312,84414.0,84401.0,0.02013567]
[1744896901672,0.32662432,84402.0,84401.0,0.02013567]
[1744896902205,0.44607223,84402.0,84401.0,0.02013567]
[1744896902738,0.32666925,84386.0,84385.0,0.1612]
[1744896902940,0.32666925,84386.0,84384.0,0.000422]
[1744896902941,0.32667206,84385.0,84384.0,0.00055712]
[1744896903985,0.44611997,84385.0,84384.0,0.00055712]
[1744896904370,0.87461997,84385.0,84384.0,1e-08]
[1744896904602,0.92101997,84385.0,84384.0,1e-08]
[1744896905044,0.66669172,84378.0,84377.0,0.0004218]
[1744896905216,0.82613963,84378.0,84377.0,0.0004218]
[1744896905783,0.82613963,84378.0,84368.0,0.0004221]
[1744896905784,0.86561663,84378.0,84368.0,0.0004221]
[1744896905967,0.86561663,84378.0,84349.0,0.08922705]
[1744896905968,0.32677041,84350.0,84349.0,0.08922705]
[1744896906161,0.44621832,84350.0,84349.0,0.08967994]
[1744896906408,0.79621832,84350.0,84349.0,0.08967994]
[1744896906631,0.84321832,84350.0,84349.0,0.08967994]
[1744896907459,0.91467996,84350.0,84349.0,0.08967994]
[1744896907681,0.87710208,84350.0,84349.0,0.08967994]
[1744896907889,0.9107308,84350.0,84349.0,0.08967994]
[1744896908301,0.89438789,84350.0,84349.0,0.08967994]
[1744896908514,0.86075917,84350.0,84349.0,0.08967994]
[1744896908927,0.90845917,84350.0,84349.0,0.08967994]
[1744896909142,0.90945917,84350.0,84349.0,0.08967994]
[1744896909345,0.92580208,84350.0,84349.0,0.08967994]
[1744896909543,0.92880208,84350.0,84349.0,0.08967994]
[1744896909790,0.89591832,84350.0,84349.0,0.08967994]
[1744896910004,0.99591832,84350.0,84349.0,0.08967994]
[1744896910385,0.60721832,84350.0,84349.0,0.08967994]
[1744896910587,0.31311103,84350.0,84349.0,0.08967994]
[1744896910927,0.19366312,84350.0,84349.0,0.08967994]
[1744896911181,0.19366312,84350.0,84349.0,0.09067994]
[1744896911356,0.31311103,84350.0,84349.0,0.09067994]
[1744896911553,0.31211103,84350.0,84349.0,0.09067994]
[1744896911936,0.31311103,84350.0,84349.0,0.09067994]
[1744896912429,0.31011103,84350.0,84349.0,0.09067994]
[1744896912880,0.65011103,84350.0,84349.0,0.09067994]
[1744896913091,0.70941103,84350.0,84349.0,0.09067994]
[1744896913502,0.66211103,84350.0,84349.0,0.09067994]